[Event "7th Sharjah Masters 2024"]
[Site "Sharjah"]
[Date "2024.05.21"]
[Round "8.27"]
[White "Kuybokarov, Temur"]
[Black "Adhiban, B.."]
[Result "1/2-1/2"]
[ECO "A13"]
[WhiteElo "2602"]
[BlackElo "2523"]
[Annotator "TA"]
[PlyCount "54"]
[EventDate "2024.05.13"]
[EventType "swiss"]
[EventCountry "UAE"]
[SourceTitle "playchess.com"]
[Source "ChessBase"]
[SourceQuality "1"]
[TimeControl "5400+30"]

{[%evp 10,54,36,25,22,11,11,12,11,11,11,22,1,12,12,14,36,8,10,16,28,0,0,0,10,0,5,0,15,0,0,0,0,0,-3,-17,0,0,0,-5,0,0,3,0,0,0,0]} 1. c4 {[%emt 0:00:06]} e6 {[%emt 0:00:23]} 2. Nf3 {[%emt 0:00:35]} d5 {[%emt 0:00:07]} 3. g3 {[%emt 0:00:32]} Nf6 {[%emt 0:00:56]} 4. Bg2 {[%emt 0:00:18]} d4 {[%emt 0:00:23]} 5. O-O {[%emt 0:01:03]} Nc6 {[%emt 0:00:10]} 6. d3 {[%emt 0:01:00]} Bc5 {[%emt 0:00:06]} 7. Nbd2 {[%emt 0:00:30]} O-O {[%emt 0:00:30]} 8. Nb3 {[%emt 0:00:30]} Be7 {[%emt 0:00:30]} 9. e3 {[%emt 0:00:30]} dxe3 {[%emt 0:00:30]} 10. Bxe3 {[%emt 0:00:30]} Ng4 {[%emt 0:00:30]} 11. Bc5 {[%emt 0:00:30]} Bxc5 {[%emt 0:00:30]} 12. Nxc5 {[%emt 1:30:26]} b6 13. Nb3 {[%emt 0:00:00][%cal Bc5b3,Bb3c1,Bc1e2][%mdl 32] [#] Ne1 would now be deadly.} Bb7 {[%emt 0:00:00]} 14. d4 {[%emt 0:00:00]} Ne7 {[%emt 0:06:37]} 15. Qc2 {[%emt 0:00:00] Black must now prevent Ng5.} Nf6 {[%emt 0:00:39] The position is equal.} 16. Rad1 {[%emt 0:00:00]} Bxf3 {[%emt 0:00:11]} 17. Bxf3 {[%emt 0:00:00]} c6 {[%emt 0:00:03]} 18. Nc1 {[%emt 0:00:00]} Qc7 {[%emt 0:01:02]} 19. Ne2 {[%emt 0:00:00]} Rad8 {[%emt 0:02:15]} 20. Rd2 {[%emt 0:00:00]} Rd7 {[%emt 0:03:39]} 21. Rfd1 {[%emt 0:00:00]} Rfd8 {[%emt 0:00:06]} 22. Nc3 {[%emt 0:00:00]} h6 {[%emt 0:06:57]} 23. Ne4 {[%emt 0:00:00]} Nxe4 {[%emt 0:01:47]} 24. Bxe4 {[%emt 0:00:00]} b5 {[%emt 0:08:30]} 25. b3 {[%emt 0:00:00]} b4 {[%emt 0:00:30]} 26. Rd3 {[%emt 0:00:00]} a5 {[%emt 0:07:56]} 27. Qe2 {[%emt 0:00:00]} Qa7 {[%emt 0:03:15] An uneventful encounter.   Weighted Error Value: White=0.06 (flawless) /Black=0.03 (flawless) .  Inaccurate:     	White=1     	---        OK:         	White=10    	Black=12} 1/2-1/2

[Event "7th Sharjah Masters 2024"]
[Site "Sharjah"]
[Date "2024.05.21"]
[Round "8.28"]
[White "Jumabayev, Rinat"]
[Black "Iniyan, Pa"]
[Result "0-1"]
[ECO "D05"]
[WhiteElo "2597"]
[BlackElo "2497"]
[Annotator "RC"]
[PlyCount "70"]
[EventDate "2024.05.13"]
[EventType "swiss"]
[EventCountry "UAE"]
[SourceTitle "playchess.com"]
[Source "ChessBase"]
[SourceQuality "1"]
[TimeControl "5400+30"]

1. Nf3 {[%emt 0:00:53]} d5 {[%emt 0:07:06]} 2. d4 {[%emt 0:00:08]} Nf6 {[%emt 0:00:12]} 3. e3 {[%emt 0:00:08]} c5 {[%emt 0:02:39]} 4. c3 {[%emt 0:01:01]} e6 {[%emt 0:00:58]} 5. Bd3 {[%emt 0:00:15]} Nc6 {[%emt 0:00:31]} 6. Nbd2 {[%emt 0:00:10]} Bd6 {[%emt 0:06:32]} 7. O-O {[%emt 0:00:35]} O-O {[%emt 0:00:31]} 8. Re1 {[%emt 0:00:08]} e5 {[%emt 0:01:24]} 9. e4 {[%emt 0:01:55]} cxd4 {[%emt 0:10:16]} 10. cxd4 {[%emt 0:00:14]} Bg4 {[%emt 0:00:17]} 11. exd5 {[%emt 0:11:37]} Nxd4 {[%emt 0:17:45]} 12. Nc4 {[%emt 0:26:45]} Re8 {[%emt 0:20:01]} 13. Bg5 {[%emt 0:04:53]} Bxf3 {[%emt 0:09:43]} 14. gxf3 {[%emt 0:00:58]} h6 {[%emt 0:00:03]} 15. Bh4 {[%emt 0:03:58]} Rc8 {[%emt 0:05:13]} 16. Kg2 {[%emt 0:32:07]} b5 {[%emt 0:02:16]} 17. Ne3 {[%emt 0:00:37]} g5 {[%emt 0:01:18]} 18. Bg3 {[%emt 0:00:37]} Bb4 {[%emt 0:00:09]} 19. Rg1 {[%emt 0:02:41]} Nxd5 {[%emt 0:00:31]} 20. Nf5 {[%emt 0:00:34]} Nxf5 {[%emt 0:04:30]} 21. Bxf5 {[%emt 0:00:09]} Rc4 {[%emt 0:00:34]} 22. Qb3 {[%emt 0:02:04]} Nf4+ {[%emt 0:05:12]} 23. Bxf4 {[%emt 0:04:56]} Rxf4 {[%emt 0:00:14]} 24. Be4 {[%emt 0:03:23]} Qe7 {[%emt 0:00:42]} 25. Rac1 {[%emt 0:00:34]} Kg7 {[%emt 0:00:31]} 26. Rc6 {[%emt 0:01:09]} f5 {[%emt 0:03:25]} 27. Rgc1 {[%emt 0:00:42]} Bd6 {[%emt 0:00:04]} 28. Bd5 {[%emt 0:00:32]} e4 {[%emt 0:00:23]} 29. fxe4 {[%emt 0:00:19]} fxe4 {[%emt 0:00:17]} 30. Qc3+ {[%emt 0:00:50]} Be5 {[%emt 0:01:01]} 31. Qc5 {[%emt 0:00:25]} Qxc5 {[%emt 0:00:41]} 32. R1xc5 {[%emt 0:00:05]} Ref8 {[%emt 0:00:18]} 33. f3 {[%emt 0:01:01]} Rxf3 {[%emt 0:00:37]} 34. Bxe4 {[%emt 0:00:05]} Rf2+ {[%emt 0:00:10]} 35. Kg1 {[%emt 0:00:09]} Rf1+ {[%emt 0:00:04]} 0-1

[Event "7th Sharjah Masters 2024"]
[Site "Sharjah"]
[Date "2024.05.21"]
[Round "8.29"]
[White "Siddharth, Jagadeesh"]
[Black "Esipenko, Andrey"]
[Result "1-0"]
[ECO "C02"]
[WhiteElo "2512"]
[BlackElo "2704"]
[Annotator "TA"]
[PlyCount "61"]
[EventDate "2024.05.13"]
[EventType "swiss"]
[EventCountry "UAE"]
[SourceTitle "playchess.com"]
[Source "ChessBase"]
[SourceQuality "1"]
[TimeControl "5400+30"]

{[%evp 18,61,35,14,20,-32,4,0,0,0,0,-5,0,4,0,6,80,0,120,108,151,0,313,251,252,236,1301,1301,1316,1315,1227,1192,2526,2355,29981,29982,29982,29983,29991,29992,29994,29995,29995,29994,29996,29995]} 1. e4 {[%emt 0:00:08][%cal Be2e4,Be4e5][%mdl 32]} e6 {[%emt 0:00:12]} 2. d4 {[%emt 0:00:29]} d5 {[%emt 0:00:12]} 3. e5 {[%emt 1:31:23]} c5 {[%emt 0:00:10]} 4. c3 {[%emt 1:31:48]} Nc6 {[%emt 0:00:06]} 5. Nf3 {[%emt 0:00:06]} Bd7 {[%emt 0:00:07]} 6. Be2 {[%emt 0:00:06]} f6 {[%emt 0:00:13]} 7. O-O {[%emt 0:00:36]} fxe5 {[%emt 1:33:00]} 8. Nxe5 {[%emt 0:00:03]} Nxe5 {[%emt 0:00:08]} 9. dxe5 {[%emt 0:00:05]} Qc7 {[%emt 0:00:08]} 10. Re1 {[%emt 0:00:04]} O-O-O {[%emt 0:00:31]} 11. a4 {[%emt 0:01:04]} ({Better is} 11. c4 $11) 11... Qxe5 {[%emt 0:20:03]} 12. Bf3 {[%emt 0:00:06]} Qc7 {[%emt 0:00:36] The position is equal.} 13. Na3 {[%emt 0:06:56]} a6 {[%emt 0:03:04] Dodges Nb5} 14. c4 {[%emt 0:04:58]} Nf6 {[%emt 0:08:59]} 15. Nb5 {[%emt 0:05:49] Wards off Bd6} Qb8 {[%emt 0:05:49]} 16. b4 {[%emt 0:08:53][%cal Ob4c5] aiming for bxc5!} axb5 {[%emt 0:58:03]} (16... e5 $1 $11 {remains equal.} 17. cxd5 e4 (17... axb5 18. axb5 e4 19. Bxe4 $11) 18. Bxe4 (18. bxc5 exf3 19. Qd4 Bc6 $17) 18... axb5 19. axb5 Re8 (19... cxb4 20. Qc2+ $18)) 17. axb5 $16 {[%emt 0:00:48][%cal Ba4b5,Bb5b6][%mdl 32]} e5 {[%emt 0:02:12] [#]} (17... cxb4 18. cxd5 Bxb5 19. Qc2+ (19. Rxe6 Bd6 $18) 19... Kd7 20. dxe6+ Ke8 21. Bh5+ g6 (21... Nxh5 $2 22. Qf5 $18) 22. Qf5 $18) (17... dxc4 18. Qe2 Be8 (18... cxb4 $2 19. Qxc4+ $18) (18... Bxb5 $2 19. Qxe6+ Rd7 20. Qb6 $18) 19. bxc5 $18 (19. Qxc4 Rd4 $18) (19. Qxe6+ Rd7 $18)) (17... h5 $1 $11) 18. b6 $1 {[%emt 0:11:02]} ({Much weaker is} 18. Bxd5 $6 Nxd5 19. cxd5 (19. Qxd5 $2 Bxb5 20. Qf3 Bc6 $19) 19... b6 $11 (19... Bxb5 $2 20. bxc5 Bxc5 21. Ra5 $18)) 18... Re8 {[%emt 0:15:37]} ({But not} 18... e4 $2 19. Bf4 Qxf4 20. Ra8+ $18) 19. Bg5 $2 {[%emt 0:13:00] White is more active.} (19. Bxd5 $16 {Threatens to win with Ra7.} Nxd5 20. cxd5) 19... cxb4 $2 {[%emt 0:04:59][%mdl 8192]} (19... e4 $11 {and Black stays safe.}) 20. Bxf6 {[%emt 0:11:15]} (20. Bxd5 Bc5 21. Be3 Bxe3 22. fxe3 (22. Rxe3 Nxd5 23. cxd5 Kd8 $17) 22... Nxd5 23. cxd5 Rhf8 24. Rc1+ Kd8 $17) 20... gxf6 {[%emt 0:00:08]} 21. Qxd5 {[%emt 0:35:21] Black must now prevent Red1.} f5 $2 {[%emt 0:03:30]} (21... e4) 22. Red1 $18 {[%emt 0:08:57]} ({Weaker is} 22. c5 e4 $14) 22... Be6 {[%emt 0:03:50]} 23. Qb5 {[%emt 0:00:56]} Rd8 {[%emt 0:00:41]} 24. c5 {[%emt 0:04:30][%cal Bc4c5,Bc5c6,Bc6c7][%mdl 32] Threatening mate with c6.} Rxd1+ {[%emt 0:06:03]} 25. Rxd1 {[%emt 0:22:34][%cal Rb5e8]} Bg7 {[%emt 0:00:08]} 26. c6 {[%emt 0:01:12] White mates.} e4 {[%emt 0:00:19]} 27. c7 {[%emt 0:00:06]} Qa8 {[%emt 0:00:11]} 28. Bh5 {[%emt 0:06:04]} Bf6 {[%emt 0:03:32] [#]} 29. Bf7 $1 {[%emt 0:00:34][%cal Rf7e6][%mdl 512]} Qa2 {[%emt 0:00:31]} 30. Bxe6+ {[%emt 0:01:03]} Qxe6 {[%emt 0:00:02]} 31. Qa5 {[%emt 0:00:07] Weighted Error Value: White=0.20 (precise) /Black=0.86.  Loses game:     	---       	Black=1      Mistake:       	White=2     	Black=3      Inaccurate:     	White=1     	Black=2      OK:         	White=5     	Black=4      Best:        	White=1     	---        Strong:       	White=1     	---} 1-0

[Event "7th Sharjah Masters 2024"]
[Site "Sharjah"]
[Date "2024.05.21"]
[Round "8.30"]
[White "Cardoso Cardoso, Jose Gabriel"]
[Black "Sjugirov, Sanan"]
[Result "1/2-1/2"]
[ECO "B12"]
[WhiteElo "2497"]
[BlackElo "2692"]
[Annotator "TA"]
[PlyCount "20"]
[EventDate "2024.05.13"]
[EventType "swiss"]
[EventCountry "UAE"]
[SourceTitle "playchess.com"]
[Source "ChessBase"]
[SourceQuality "1"]
[TimeControl "5400+30"]

{[%evp 13,20,35,35,22,19,25,48,27,80]} 1. e4 {[%emt 0:00:03]} c6 {[%emt 0:00:35]} 2. d4 {[%emt 0:00:14]} d5 {[%emt 0:00:07]} 3. e5 {[%emt 0:00:12]} Bf5 {[%emt 0:00:14]} 4. h4 {[%emt 0:00:23]} h5 {[%emt 0:00:37]} 5. c4 {[%emt 0:00:10]} e6 {[%emt 0:00:39]} 6. Nc3 {[%emt 0:00:11]} Nd7 {[%emt 0:08:15]} 7. cxd5 {[%emt 0:00:24]} cxd5 {[%emt 0:00:15]} 8. Bd3 {[%emt 0:00:50]} Bxd3 {[%emt 0:00:46]} 9. Qxd3 {[%emt 0:00:03]} Ne7 {[%emt 0:00:12]} 10. Nf3 {[%emt 0:08:40]} g6 {[%emt 0:10:08] Black got outplayed after the opening.   Weighted Error Value: White=0.16 (very precise) /Black=0.10 (very precise) .  Mistake:       	---       	Black=1      OK:         	---       	Black=1} (10... Nb6 $11 {keeps the balance.}) 1/2-1/2

[Event "7th Sharjah Masters 2024"]
[Site "Sharjah"]
[Date "2024.05.21"]
[Round "8.31"]
[White "Yilmaz, Mustafa"]
[Black "Yilmazyerli, Mert"]
[Result "1/2-1/2"]
[ECO "A18"]
[WhiteElo "2641"]
[BlackElo "2522"]
[Annotator "TA"]
[PlyCount "71"]
[EventDate "2024.05.13"]
[EventType "swiss"]
[EventCountry "UAE"]
[SourceTitle "playchess.com"]
[Source "ChessBase"]
[SourceQuality "1"]
[TimeControl "5400+30"]

{[%evp 11,71,30,32,33,33,31,31,35,27,40,31,21,18,22,16,24,24,10,27,29,25,23,22,26,20,26,39,32,47,50,52,51,48,30,40,37,34,33,37,37,33,22,43,40,45,43,43,43,46,40,41,35,34,34,34,29,29,-30,-37,-34,-30,-30]} 1. c4 {[%emt 1:31:00]} Nf6 {[%emt 1:31:00]} 2. Nc3 {[%emt 0:00:30]} e6 {[%emt 0:00:30][%cal Be7e6,Be6d5][%mdl 32]} 3. e4 {[%emt 0:00:30][%cal Be2e4,Be4e5][%mdl 32]} d5 {[%emt 0:00:30]} 4. cxd5 {[%emt 0:00:30]} exd5 {[%emt 0:00:30]} 5. e5 {[%emt 0:00:30]} d4 {[%emt 0:00:30]} 6. exf6 {[%emt 0:00:30]} dxc3 {[%emt 0:00:30]} 7. Bb5+ {[%emt 0:00:30]} Nc6 {[%emt 0:00:30]} 8. Qe2+ {[%emt 0:00:30]} Be6 {[%emt 0:00:30]} 9. dxc3 {[%emt 0:00:30] White is slightly better.} Qxf6 {[%emt 0:00:30]} 10. Nf3 {[%emt 0:00:30][%cal Bg1f3,Bf3d4,Bd4e6][%mdl 32]} Bd6 {[%emt 0:00:30]} 11. Nd4 {[%emt 0:00:30]} O-O {[%emt 0:00:30]} 12. Nxe6 {[%emt 0:00:30]} Rfe8 {[%emt 0:00:30] [#]} 13. Bc4 $1 {[%emt 0:00:30][%cal Oc1e3]} Na5 $1 {[%emt 0:00:30][%cal Oa5c4]} 14. Bg5 {[%emt 0:00:30]} Qg6 {[%emt 0:00:30][%cal Oa5c4] aiming for ...Nxc4!} 15. Bd3 {[%emt 0:00:30]} Qxe6 {[%emt 0:00:30]} 16. Qxe6 {[%emt 0:00:30]} Rxe6+ {[%emt 0:00:30]} 17. Kd2 {[%emt 0:00:30]} Nc6 {[%emt 0:00:30]} 18. Kc2 {[%emt 0:00:30]} Bc5 {[%emt 0:00:30]} 19. f3 {[%emt 0:00:30]} Be7 {[%emt 0:00:30]} 20. Bd2 {[%emt 0:00:30]} Rd8 {[%emt 0:00:30] [#] White must now prevent ...Red6.} 21. Rad1 {[%emt 0:00:30]} Ne5 {[%emt 0:00:30]} 22. Bf5 {[%emt 0:00:30]} Red6 {[%emt 0:00:30]} 23. Bf4 {[%emt 0:00:30] A strong pair of Bishops.} Rxd1 {[%emt 0:00:30]} 24. Rxd1 {[%emt 0:00:30]} Rxd1 {[%emt 0:00:30]} 25. Kxd1 $14 {[%emt 0:00:30][%mdl 4096] Endgame. KBB-KBN} Bd6 {[%emt 0:00:30]} 26. Bc1 {[%emt 0:00:30]} h5 {[%emt 0:00:30]} 27. Ke2 {[%emt 0:00:30]} g6 {[%emt 0:00:30]} 28. Bc8 {[%emt 0:00:30]} b6 $1 {[%emt 0:00:30]} 29. f4 {[%emt 0:00:30]} Nc6 {[%emt 0:00:30]} 30. Kd3 {[%emt 0:00:30]} Ne7 {[%emt 0:00:30]} 31. Bd7 {[%emt 0:00:30]} Nd5 {[%emt 0:00:30]} 32. g3 {[%emt 0:00:30]} h4 {[%emt 0:00:30]} 33. Bd2 {[%emt 0:00:30]} Nf6 {[%emt 0:00:30]} 34. Bh3 {[%emt 0:00:30]} (34. Bc6 $142) 34... hxg3 {[%emt 0:00:30]} 35. hxg3 {[%emt 0:00:30]} Nh5 $1 {[%emt 0:00:30]} 36. f5 {[%emt 0:00:30] Weighted Error Value: White=0.06 (flawless) /Black=0.03 (flawless) .  Mistake:       	White=1     	---        OK:         	White=13    	Black=14     Best:        	---       	Black=2      Strong:       	---       	Black=3} 1/2-1/2

[Event "7th Sharjah Masters 2024"]
[Site "Sharjah"]
[Date "2024.05.21"]
[Round "8.32"]
[White "Ivanchuk, Vasyl"]
[Black "Mchedlishvili, Mikheil"]
[Result "1/2-1/2"]
[ECO "C20"]
[WhiteElo "2609"]
[BlackElo "2569"]
[Annotator "TA"]
[PlyCount "40"]
[EventDate "2024.05.13"]
[EventType "swiss"]
[EventCountry "UAE"]
[SourceTitle "playchess.com"]
[Source "ChessBase"]
[SourceQuality "1"]
[TimeControl "5400+30"]

{[%evp 9,40,18,14,17,16,25,25,12,35,11,0,0,5,0,1,0,18,25,24,19,33,0,0,0,0,-21,37,0,0,0,0,0,-4]} 1. e4 {[%emt 0:00:30]} e5 {[%emt 0:01:37]} 2. Ne2 {[%emt 0:00:05]} Nf6 {[%emt 0:01:52]} 3. d4 {[%emt 0:02:06]} Nxe4 {[%emt 0:03:00][%cal Bf6e4,Be4d6,Bd6f5][%mdl 32]} 4. f3 {[%emt 0:00:09]} Nd6 {[%emt 0:01:52]} 5. dxe5 {[%emt 0:00:16]} Nf5 {[%emt 0:00:39]} 6. Nbc3 {[%emt 0:00:51]} d6 {[%emt 0:03:33]} 7. exd6 {[%emt 0:10:01]} Bxd6 {[%emt 0:03:01]} 8. Bf4 {[%emt 0:01:46] White has an edge.} O-O {[%emt 0:01:47]} 9. Bxd6 {[%emt 0:02:59]} Nxd6 {[%emt 0:03:13]} 10. Qd2 {[%emt 0:00:20]} Qh4+ {[%emt 0:16:22]} 11. g3 {[%emt 0:00:58]} Qb4 {[%emt 0:00:28]} 12. b3 {[%emt 0:14:18]} a5 {[%emt 0:06:09]} 13. Rd1 {[%emt 0:12:27][%cal Ba1d1,Bd1d2,Bd2d6][%mdl 32]} Re8 {[%emt 0:08:18]} 14. Nd5 {[%emt 0:12:35][%csl LRb4,LRc7]} Qc5 {[%emt 0:02:00] [#]} 15. Nxc7 {[%emt 0:07:58]} Qxc7 $11 {[%emt 0:00:28]} 16. Qxd6 {[%emt 0:00:03]} Qxc2 {[%emt 0:02:25]} 17. Rd2 {[%emt 0:00:05]} Qc6 {[%emt 0:13:44]} (17... Ra6 $11 18. Qd4 (18. Qxb8 $2 {too greedy.} Qc1+ 19. Rd1 Qc3+ 20. Rd2 Rf6 $19) 18... Qc7) 18. Bg2 {[%emt 0:12:22]} Qxd6 {[%emt 0:12:15] The position is equal.} 19. Rxd6 {[%emt 0:00:06]} Nc6 {[%emt 0:00:09]} 20. Kf2 {[%emt 0:02:49]} a4 {[%emt 0:00:29] A rather calm draw.   Weighted Error Value: White=0.09 (flawless) /Black=0.09 (flawless) .  Mistake:       	White=1     	Black=1      Inaccurate:     	White=1     	---        OK:         	White=5     	Black=9      Best:        	White=1     	---} 1/2-1/2

[Event "7th Sharjah Masters 2024"]
[Site "Sharjah"]
[Date "2024.05.21"]
[Round "8.33"]
[White "Moroni, Luca Jr"]
[Black "Nesterov, Arseniy"]
[Result "0-1"]
[ECO "A13"]
[WhiteElo "2581"]
[BlackElo "2590"]
[Annotator "TA"]
[PlyCount "122"]
[EventDate "2024.05.13"]
[EventType "swiss"]
[EventCountry "UAE"]
[SourceTitle "playchess.com"]
[Source "ChessBase"]
[SourceQuality "1"]
[TimeControl "5400+30"]

{[%evp 50,122,0,0,0,0,0,0,0,0,0,-31,-44,-50,-51,-45,-45,-70,-76,-70,-72,-104,-88,-177,-150,-149,-154,-152,-161,-157,-152,-168,-164,-156,-140,-131,-148,-355,-416,-524,-487,-537,-528,-537,-505,-536,-420,-493,-540,-540,-503,-533,-216,-554,-533,-753,-744,-759,-695,-771,-771,-771,-771,-771,-771,-771,-771,-771,-771,-771,-771,-749,-511,-29968,-12714]} 1. Nf3 {[%emt 0:00:02]} d5 {[%emt 0:02:01]} 2. g3 {[%emt 0:00:04]} Nf6 {[%emt 0:00:04]} 3. Bg2 {[%emt 0:00:04]} e6 {[%emt 0:00:04]} 4. O-O {[%emt 0:00:11]} c5 {[%emt 0:00:29]} 5. c4 {[%emt 0:00:07]} d4 {[%emt 0:00:10]} 6. e3 {[%emt 0:00:06]} Nc6 {[%emt 0:00:06] A13: English Opening: 1...e6.} 7. d3 {[%emt 0:00:05]} h6 {[%emt 0:07:24]} 8. exd4 {[%emt 0:00:38]} cxd4 {[%emt 0:00:04]} 9. Bf4 {[%emt 0:00:05]} Bd6 {[%emt 0:00:05] 9...Nd7 is the modern continuation.} 10. Bxd6 {[%emt 0:00:18]} Qxd6 {[%emt 0:00:01]} 11. Nbd2 {[%emt 0:00:09]} O-O {[%emt 0:00:43]} 12. Re1 {[%emt 0:00:23]} Rd8 {[%emt 0:06:22]} 13. a3 {[%emt 0:05:13]} a5 {[%emt 0:00:20]} 14. Rc1 {[%emt 0:00:05]} a4 $146 {[%emt 0:15:50]} ({Predecessor:} 14... Rb8 15. c5 Qe7 16. Qa4 Rd5 17. b4 Bd7 18. b5 Na7 19. Qxa5 Nxb5 20. Ne5 Be8 21. Bxd5 Nxd5 {1-0 Blohberger,F (2488)-Diermair,A (2457) Vienna 2023 (9)}) 15. Ne4 {[%emt 0:10:00]} Nxe4 {[%emt 0:00:36]} 16. Rxe4 {[%emt 0:00:08]} b6 {[%emt 0:17:05]} 17. Re1 {[%emt 0:14:14]} Bb7 {[%emt 0:01:23]} 18. Nd2 {[%emt 0:00:08]} Qe7 {[%emt 0:01:53]} 19. f4 {[%emt 0:10:32]} Nb8 {[%emt 0:06:44]} 20. Re5 {[%emt 0:15:18]} Bxg2 {[%emt 0:02:41]} 21. Kxg2 {[%emt 0:00:05]} Nd7 {[%emt 0:04:41]} 22. Rb5 {[%emt 0:02:06]} Nc5 {[%emt 0:03:10]} 23. Qf3 {[%emt 0:01:09]} Qc7 {[%emt 0:00:06]} 24. Re1 {[%emt 0:04:13]} Ra5 {[%emt 0:09:36]} 25. Rxa5 {[%emt 0:01:29]} bxa5 {[%emt 0:00:01]} 26. Ne4 {[%emt 0:00:06]} Nd7 {[%emt 0:00:05]} 27. g4 {[%emt 0:01:24]} Rb8 {[%emt 0:00:10]} 28. Re2 {[%emt 0:00:03]} Rb3 {[%emt 0:02:20]} 29. Nf2 {[%emt 0:02:41]} Nc5 {[%emt 0:06:14]} 30. f5 {[%emt 0:02:44]} e5 {[%emt 0:05:40]} 31. Rd2 {[%emt 0:07:26]} Qb7 $1 {[%emt 0:02:08]} 32. Qxb7 {[%emt 0:01:26]} Rxb7 {[%emt 0:00:19]} 33. Re2 {[%emt 0:00:01]} f6 {[%emt 0:00:20]} 34. h4 {[%emt 0:01:13]} Rb3 {[%emt 0:00:11]} 35. Rd2 {[%emt 0:00:02]} Kf7 {[%emt 0:00:05]} 36. h5 {[%emt 0:00:27]} (36. Kf1 $17) 36... Ke7 $19 {[%emt 0:00:04]} 37. Kf3 {[%emt 0:00:05]} e4+ $1 {[%emt 0:04:50]} 38. Nxe4 {[%emt 0:00:03]} Nxd3 {[%emt 0:00:02]} (38... Rxd3+ 39. Rxd3 Nxd3 40. Nd2 $11) 39. Ke2 {[%emt 0:01:03]} Ne5 $1 {[%emt 0:00:33]} (39... Nxb2 $2 40. Rxd4 Rxa3 41. c5 $18) 40. Rxd4 {[%emt 0:01:30]} Rxb2+ {[%emt 0:00:01]} (40... Nxg4 41. Nd2 Re3+ 42. Kd1 Nf2+ 43. Kc2 $11) 41. Kd1 {[%emt 0:00:36]} Rb3 {[%emt 0:01:05]} (41... Nxg4 42. Nd6 Rg2 43. Nc8+ Ke8 44. Ke1) 42. Kc2 {[%emt 0:00:30]} Rxa3 {[%emt 0:00:57]} (42... Nxg4 $6 43. c5 Ne3+ (43... Rxa3 $2 44. c6 $18) 44. Kd2 Nxf5 (44... Rxa3 $2 45. c6 $18) 45. Rxa4 $15) 43. c5 $2 {[%emt 0:01:47]} (43. Nc3 $17 {was worth a try.}) 43... Nc6 $19 {[%emt 0:01:31]} (43... Nxg4 $2 {perishes.} 44. c6 Ne3+ 45. Kd2 Nxf5 46. c7 Nxd4 (46... Ra2+ $2 47. Kd3 $18) 47. c8=Q (47. c8=B $2 Rf3 $19) 47... Nf3+ 48. Kc1 Ra1+ 49. Kb2 $18) 44. Rd6 {[%emt 0:00:40]} Nb4+ {[%emt 0:00:07]} 45. Kd2 {[%emt 0:01:11]} Ra2+ {[%emt 0:00:07]} 46. Kd1 {[%emt 0:00:20]} Ra1+ {[%emt 0:01:15]} 47. Kd2 {[%emt 0:00:02]} a3 {[%emt 0:00:40]} 48. c6 {[%emt 0:00:18]} Nxc6 $1 {[%emt 0:00:19]} 49. Rxc6 {[%emt 0:00:05] [#]} a2 $1 {[%emt 0:00:02]} 50. Nc3 {[%emt 0:04:03]} Rd1+ {[%emt 0:00:05]} 51. Nxd1 $2 {[%emt 0:00:02]} (51. Kxd1 {was the crucial defense.} a1=Q+ (51... a1=B $2 {loses.} 52. Nd5+ Kd7 53. Ra6 $18) 52. Kc2) 51... a1=Q $19 {[%emt 0:00:07]} (51... a1=B $2 {is the wrong capture.} 52. Nf2 $18) 52. Rc7+ {[%emt 0:00:57]} Kf8 {[%emt 0:01:19]} 53. Rc8+ {[%emt 0:00:18] [#]} Kf7 $1 {[%emt 0:00:01]} 54. Rc7+ {[%emt 0:00:28]} Kg8 {[%emt 0:00:01]} 55. Rc8+ {[%emt 0:00:49]} Kh7 {[%emt 0:00:01]} 56. Rc4 {[%emt 0:01:07]} Qa2+ {[%emt 0:00:17]} 57. Kd3 {[%emt 0:00:01]} Qb1+ {[%emt 0:00:18]} 58. Kd2 {[%emt 0:00:04]} Qb3 {[%emt 0:00:08]} 59. Rd4 {[%emt 0:00:36]} a4 {[%emt 0:00:21]} 60. Nc3 {[%emt 0:00:07]} a3 {[%emt 0:00:05]} 61. Ra4 {[%emt 0:00:17]} (61. Re4 $19) 61... Qxa4 {[%emt 0:00:06]} 0-1

[Event "7th Sharjah Masters 2024"]
[Site "Sharjah"]
[Date "2024.05.21"]
[Round "8.34"]
[White "Gavrilescu, David"]
[Black "Sethuraman, S.P."]
[Result "1/2-1/2"]
[ECO "C45"]
[WhiteElo "2540"]
[BlackElo "2593"]
[Annotator "TA"]
[PlyCount "31"]
[EventDate "2024.05.13"]
[EventType "swiss"]
[EventCountry "UAE"]
[SourceTitle "playchess.com"]
[Source "ChessBase"]
[SourceQuality "1"]
[TimeControl "5400+30"]

{[%evp 12,31,18,17,29,16,25,26,27,22,20,14,16,18,32,20,13,13,29,11,11,17]} 1. e4 {[%emt 0:00:16]} e5 {[%emt 0:00:33]} 2. Nf3 {[%emt 0:00:30][%cal Bg1f3,Bf3d4,Bd4b3][%mdl 32]} Nc6 {[%emt 0:00:10]} 3. d4 {[%emt 0:00:31]} exd4 {[%emt 0:00:09]} 4. Nxd4 {[%emt 0:00:06]} Bc5 {[%emt 0:00:05]} 5. Nb3 {[%emt 0:00:41]} Bb6 {[%emt 0:00:08]} 6. Nc3 {[%emt 0:00:16]} d6 {[%emt 0:00:50]} 7. Qe2 {[%emt 0:06:04]} a5 {[%emt 0:00:42]} 8. Be3 {[%emt 0:00:25] White wants to play Bxb6.} a4 {[%emt 0:00:19] [#] ...Bxe3 is the strong threat.} 9. Bxb6 {[%emt 0:00:09]} axb3 {[%emt 0:00:05] White has an edge.} 10. Be3 {[%emt 0:00:09]} bxa2 {[%emt 0:00:20]} 11. Rxa2 {[%emt 0:00:39]} Rxa2 {[%emt 0:00:09]} 12. Nxa2 {[%emt 0:00:05]} Nf6 {[%emt 0:00:14]} 13. Nc3 {[%emt 0:03:13]} O-O {[%emt 0:00:28]} 14. Qd2 {[%emt 0:04:36]} Re8 {[%emt 0:00:52]} 15. Bd3 {[%emt 0:02:24]} Nb4 {[%emt 0:00:35]} 16. O-O {[%emt 0:01:31] An uneventful encounter.   Weighted Error Value: White=0.03 (flawless) /Black=0.05 (flawless) .  OK:         	White=5     	Black=5      Best:        	White=1     	---} 1/2-1/2